bitfinex/quotes_ETHUSD_20220109
["timestamp","ask_amount","ask_price","bid_price","bid_amount"]
[1641760032630,2.65503477,3205.6,3205.5,2.56010423]
[1641760036928,2.65503477,3205.6,3205.5,2.51010423]
[1641760038325,0.7799197,3205.7,3205.5,2.51010423]
[1641760038925,2.65503477,3205.6,3205.5,2.51010423]
[1641760040227,2.51010423,3205.5,3205.0,1.2138]
[1641760040427,0.858062,3205.4,3204.5,1.30079]
[1641760040671,0.858062,3205.4,3205.1,0.00284212]
[1641760040672,0.00695196,3205.3,3205.1,0.00284212]
[1641760040873,1.37191746,3205.2,3205.1,0.00284212]
[1641760041072,6.49392746,3205.2,3205.1,0.00284212]
[1641760041269,6.57191746,3205.2,3205.1,0.00284212]
[1641760041469,9.07138115,3205.2,3205.1,0.00284212]
[1641760042076,10.63159195,3205.2,3205.1,0.00284212]
[1641760043070,8.68662672,3205.2,3205.1,0.00284212]
[1641760043271,7.12641592,3205.2,3205.1,0.00284212]
[1641760044429,4.47138115,3205.2,3205.1,0.00284212]
[1641760045023,7.07681613,3205.2,3205.1,0.00284212]
[1641760046926,7.07681613,3205.2,3204.7,0.00511581]
[1641760047128,7.85686043,3205.2,3204.7,0.00511581]
[1641760047426,7.77887043,3205.2,3204.7,0.00511581]
[1641760047624,5.12343545,3205.2,3204.7,0.00511581]
[1641760047825,5.12343545,3205.2,3204.7,0.76003]
[1641760048272,4.34339115,3205.2,3204.8,0.00454739]
[1641760048673,4.34339115,3205.2,3204.6,0.00568423]
[1641760048874,1.41705121,3204.7,3204.6,0.78573423]
[1641760049272,1.41705121,3204.7,3204.6,0.00568423]
[1641760049677,1.41705121,3204.7,3204.2,0.00795793]
[1641760050172,0.7800617,3205.1,3204.2,0.00795793]
[1641760050773,0.7800617,3205.1,3204.5,0.78008]
[1641760050972,1.20153978,3204.7,3204.5,0.78008]
[1641760051172,1.20153978,3204.7,3204.6,0.00568423]
[1641760051825,1.29063038,3204.8,3204.6,0.00568423]
[1641760052022,1.29063038,3204.8,3204.7,0.78005]
[1641760052223,1.24063038,3204.8,3204.7,0.78005]
[1641760052420,1.24063038,3204.8,3204.7,0.78516581]
[1641760052820,1.24063038,3204.8,3204.7,0.00511581]
[1641760053220,1.24063038,3204.8,3204.6,0.78007]
[1641760053622,1.24063038,3204.8,3204.7,0.00511581]
[1641760054524,1.54063038,3204.8,3204.7,0.00511581]
[1641760054728,1.61862038,3204.8,3204.7,0.00511581]
[1641760054924,0.01825866,3204.7,3204.2,0.00795793]
[1641760055125,6.46862038,3204.8,3204.1,0.00852635]
[1641760055126,1.42741371,3204.3,3204.1,0.00852635]
[1641760055780,1.0080216,3204.5,3204.1,0.78872635]
[1641760055979,2.95574496,3204.8,3204.1,0.78872635]
[1641760056182,0.078,3205.1,3204.2,0.00795793]
[1641760056380,0.078,3205.1,3204.2,0.08595793]
[1641760056579,0.378,3205.1,3204.2,0.08595793]
[1641760056782,0.378,3205.1,3204.3,0.0073895]
[1641760057081,1.26564438,3204.8,3204.3,0.0073895]
[1641760057284,1.14986077,3204.6,3204.3,0.0073895]
[1641760058481,1.09986077,3204.6,3204.3,0.0073895]
[1641760058681,1.88004607,3204.6,3204.3,0.0073895]
[1641760059082,1.18269371,3204.2,3204.1,0.78871635]
[1641760059340,1.18269371,3204.2,3204.1,0.78019]
[1641760059529,1.09986077,3204.6,3204.1,0.78019]
[1641760059728,1.88005327,3204.6,3204.1,0.78019]
[1641760059932,1.88005327,3204.6,3204.2,0.00795793]
[1641760060532,1.09986077,3204.6,3204.2,0.00795793]
[1641760061029,1.07330414,3204.4,3204.2,0.00795793]
[1641760061632,1.07330414,3204.4,3204.3,0.78016]
[1641760062031,1.07330414,3204.4,3204.3,0.7875495]
[1641760062632,1.07330414,3204.4,3204.3,0.0073895]
[1641760063276,1.07330414,3204.4,3204.1,0.00852635]
[1641760063677,1.09986077,3204.6,3204.1,1.49807862]
[1641760063880,1.09986077,3204.6,3204.3,0.78014]
[1641760064276,1.09986077,3204.6,3204.4,0.00682108]
[1641760064477,0.3,3204.8,3204.4,0.00682108]
[1641760064677,0.078,3204.7,3204.4,0.00682108]
[1641760067920,1.52357846,3204.8,3204.4,0.78695108]
[1641760068318,1.52357846,3204.8,3204.5,0.00625266]
[1641760068719,0.3,3204.8,3204.5,0.78636266]
[1641760068920,0.078,3204.9,3204.5,0.78636266]
[1641760069219,0.3,3204.9,3204.6,0.00568423]
[1641760069419,0.07799,3204.8,3204.6,0.00568423]
[1641760070019,1.0298067,3204.7,3204.6,0.00568423]
[1641760070422,1.0298067,3204.7,3204.5,0.78011]
[1641760070872,2.24692942,3205.1,3204.7,0.77992]
[1641760070873,0.81470647,3205.1,3204.7,0.77992]
[1641760071068,0.078,3205.2,3204.7,0.77992]
[1641760071270,7.68163033,3205.5,3204.7,0.77992]
[1641760071271,0.00113684,3204.8,3204.7,0.77992]
[1641760071671,0.00454738,3205.4,3204.7,3.87992]
[1641760071970,1.26327786,3205.1,3204.7,3.87992]
[1641760072169,1.22689305,3205.0,3204.7,0.77992]
[1641760072370,1.22916674,3205.0,3204.7,0.77992]
[1641760072675,0.00170527,3204.9,3204.7,0.77992]
[1641760073171,0.00170527,3204.9,3204.8,2.46959716]
[1641760074424,0.00170527,3204.9,3204.7,3.33051635]
[1641760076923,0.00170527,3204.9,3204.7,3.78051635]
[1641760077124,0.00170527,3204.9,3204.8,1.33162858]
[1641760079374,0.00170527,3204.9,3204.7,1.22992]
[1641760080579,1.42133664,3204.8,3204.7,1.22992]
[1641760081376,0.00170527,3204.9,3204.7,1.22992]
[1641760081827,0.00170527,3204.9,3204.7,3.68346224]
[1641760082221,0.00170527,3204.9,3204.8,2.44866575]
[1641760082420,0.00170527,3204.9,3204.8,6.34866575]
[1641760082621,0.00170527,3204.9,3204.8,7.58431018]
[1641760083021,0.00170527,3204.9,3204.8,7.66230018]
[1641760083421,0.00170527,3204.9,3204.8,8.77345944]
[1641760084521,0.00170527,3204.9,3204.8,3.76230018]
[1641760084922,0.00170527,3204.9,3204.8,0.07799]
[1641760088873,0.00170527,3204.9,3204.7,0.77992]
[1641760089828,0.02088965,3204.9,3204.7,0.77992]
[1641760090230,0.00170527,3204.9,3204.7,0.77992]
[1641760090431,1.0682358,3204.6,3204.5,0.78009]
[1641760091039,2.56878596,3204.6,3204.5,0.78009]
[1641760091630,1.50055016,3204.6,3204.5,0.78009]
[1641760093680,2.65972301,3204.6,3204.5,0.78009]
[1641760094777,1.15917285,3204.6,3204.5,0.78009]
[1641760095180,0.00170527,3204.9,3204.5,0.78009]
[1641760095576,1.38682325,3204.8,3204.5,0.78009]
[1641760096579,1.37646746,3204.6,3204.5,0.78009]
[1641760096832,1.37646746,3204.6,3204.4,1.56007]
[1641760097025,1.37646746,3204.6,3204.3,0.78015]
[1641760097427,1.37646746,3204.6,3204.4,0.00113685]
[1641760097629,10.278,3204.5,3204.4,0.00113685]
[1641760097826,10.278,3204.5,3203.9,4.1293]
[1641760097827,10.278,3204.5,3204.3,0.00170527]
[1641760098029,9.1,3204.4,3204.3,0.00170527]
[1641760098229,1.378,3204.4,3204.0,0.00341054]
[1641760098429,0.07802,3204.3,3204.0,0.00341054]
[1641760098629,1.17075828,3204.2,3204.0,0.00341054]
[1641760098833,1.13823815,3204.1,3204.0,0.00341054]
[1641760099233,1.17075828,3204.2,3204.0,0.00341054]
[1641760099931,1.17075828,3204.2,3204.0,0.78360054]
[1641760100332,1.17075828,3204.2,3204.1,0.00284212]
[1641760103083,1.47075828,3204.2,3204.1,0.00284212]
[1641760103276,1.24877828,3204.2,3204.0,0.00341054]
[1641760103476,1.17075828,3204.2,3204.0,0.00341054]
[1641760104332,6.87802,3204.1,3204.0,0.00341054]
[1641760104521,8.17802,3204.1,3204.0,0.00341054]
[1641760106321,10.97241015,3204.1,3204.0,0.00341054]
[1641760107122,2.87241015,3204.1,3204.0,0.00341054]
[1641760107323,4.17241015,3204.1,3204.0,0.00341054]
[1641760108177,3.9641243,3204.1,3204.0,0.00341054]
[1641760108577,1.37802,3204.1,3204.0,0.00341054]
[1641760109087,2.63307347,3204.1,3204.0,0.00341054]
[1641760109476,2.61005866,3204.1,3204.0,0.00341054]
[1641760109677,3.51188668,3204.2,3204.0,0.00341054]
[1641760109876,2.58762889,3204.1,3204.0,0.00341054]
[1641760110078,3.96564889,3204.1,3204.0,0.00341054]
[1641760110276,1.37802,3204.1,3204.0,0.00341054]
[1641760110478,0.07802,3204.1,3204.0,0.00341054]
[1641760110678,2.66289157,3204.1,3204.0,0.00341054]
[1641760110881,3.1,3204.0,3203.9,1.40968048]
[1641760111480,2.5697376,3204.1,3203.9,1.40968048]
[1641760111682,3.51188668,3204.2,3203.9,1.40968048]
[1641760111926,1.95109678,3204.2,3203.9,1.40968048]
[1641760112122,1.17075828,3204.2,3203.9,1.40968048]
[1641760119180,0.7802869,3204.3,3203.9,1.40968048]
[1641760119181,0.07802,3204.3,3203.9,1.40968048]
[1641760119427,1.209,3204.8,3203.9,1.40968048]
[1641760119428,0.07802,3204.5,3203.9,1.40968048]
[1641760119627,0.00113684,3204.2,3203.9,1.40968048]
[1641760120029,0.00397896,3204.7,3204.1,0.7800057]
[1641760120227,0.00397896,3204.7,3204.5,1.55399277]
[1641760120427,0.00341054,3204.6,3204.5,1.55399277]
[1641760121026,0.00341054,3204.6,3204.5,2.33399277]
[1641760121433,0.00341054,3204.6,3204.5,2.33093452]
[1641760121627,0.00341054,3204.6,3204.5,0.78]
[1641760122829,0.00341054,3204.6,3204.5,2.21738877]
[1641760129460,0.00341054,3204.6,3204.5,0.78]
[1641760131181,0.00341054,3204.6,3204.3,2.80572]
[1641760131588,0.00284211,3204.5,3204.3,2.80572]
[1641760131982,0.00227369,3204.4,3204.3,2.80572]
[1641760132180,2.6556827,3204.9,3204.3,2.80572]
[1641760132181,1.18622178,3204.8,3204.3,2.80572]
[1641760132383,1.18622178,3204.8,3204.3,1.56002]
[1641760132581,1.18849547,3204.8,3204.3,1.56002]
[1641760134637,0.00227369,3204.8,3204.3,1.56002]
[1641760136044,1.38526396,3204.7,3204.3,1.56002]
[1641760136444,0.00113685,3204.6,3204.3,1.56002]
[1641760140590,0.00113685,3204.6,3204.1,1.56017]
[1641760140984,0.00113685,3204.6,3204.2,0.00113685]
[1641760141185,1.53091171,3204.3,3204.2,0.00113685]
[1641760143734,1.53091171,3204.3,3204.0,0.00227369]
[1641760144836,1.53091171,3204.3,3204.1,0.78017]
[1641760146482,0.00113685,3204.6,3204.1,0.78017]
[1641760148388,0.00113685,3204.6,3204.1,1.81360649]
[1641760148586,0.00113685,3204.6,3204.1,0.78017]
[1641760149936,2.58635598,3204.6,3204.1,0.78017]
[1641760150135,0.00113685,3204.6,3204.1,0.78017]
[1641760151237,1.32986806,3204.2,3204.0,0.00227369]
[1641760151836,1.32986806,3204.2,3204.0,0.78247369]
[1641760152239,1.32986806,3204.2,3204.1,0.00170527]
[1641760156384,1.32986806,3204.2,3204.0,0.00227369]
[1641760157229,2.11014496,3204.2,3204.0,0.00227369]
[1641760159733,2.65612934,3204.1,3204.0,0.00227369]
[1641760159935,2.65612934,3204.1,3203.9,1.40968048]
[1641760159936,2.73414934,3204.1,3203.9,1.40968048]
[1641760160133,3.51446304,3204.1,3203.9,1.40968048]
[1641760161187,3.43644304,3204.1,3203.9,1.40968048]
[1641760162095,0.61350832,3203.0,3202.6,0.07802]
[1641760162289,0.02223098,3202.9,3202.3,1.31084]
[1641760162488,0.4950203,3203.0,3202.7,0.00738951]
[1641760162688,1.32723524,3202.9,3202.7,0.00738951]
[1641760162991,2.70997518,3202.9,3202.7,0.00738951]
[1641760163589,2.70997518,3202.9,3202.2,0.01023163]
[1641760163789,2.16337974,3202.9,3202.3,0.07806]
[1641760164190,2.16337974,3202.9,3202.4,0.00909478]
[1641760164434,3.93804273,3202.9,3202.4,0.00909478]
[1641760164834,3.93804273,3202.9,3202.3,0.0096632]
[1641760165035,1.24617171,3202.8,3202.3,0.0096632]
[1641760165236,3.90327243,3202.8,3202.3,0.0096632]
[1641760165434,0.01012147,3202.7,3202.3,0.0096632]
[1641760165638,2.55530409,3202.7,3202.3,0.0096632]
[1641760165834,2.54518262,3202.7,3202.3,0.0096632]
[1641760166435,0.780667,3202.6,3202.3,0.0096632]
[1641760166833,2.54518262,3202.7,3202.3,0.0096632]
[1641760167035,1.24617171,3202.8,3202.0,0.07806]
[1641760167234,0.00284212,3202.6,3202.0,0.07806]
[1641760167634,0.00227369,3202.5,3202.0,0.07806]
[1641760167834,0.00227369,3202.5,3202.0,0.85869]
[1641760168108,0.00170527,3202.4,3202.0,0.85869]
[1641760168299,0.00170527,3202.4,3202.0,0.80869]
[1641760168599,1.19223586,3202.3,3202.0,0.80869]
[1641760168899,1.19109901,3202.3,3202.0,0.8587]
[1641760169302,1.19109901,3202.3,3202.0,0.07807]
[1641760169501,1.19109901,3202.3,3201.9,0.94578385]
[1641760169502,1.97182131,3202.3,3201.9,0.94578385]
[1641760169699,1.19109901,3202.3,3201.9,0.94578385]
[1641760170400,0.07806,3202.2,3201.9,0.94578385]
[1641760171200,0.8588539,3202.2,3201.9,0.94578385]
[1641760171502,1.8588539,3202.2,3201.9,0.94578385]
[1641760172738,0.8588539,3202.2,3201.9,0.94578385]
[1641760172940,0.07806,3202.2,3201.9,0.94578385]
[1641760173144,2.04989771,3202.3,3201.9,0.94578385]
[1641760173939,1.26915901,3202.3,3201.9,0.94578385]
[1641760174943,1.19109901,3202.3,3201.9,0.94578385]
[1641760175887,1.97183271,3202.3,3201.9,0.94578385]
[1641760176686,1.19109901,3202.3,3201.9,0.94578385]
[1641760177690,2.75275161,3202.3,3201.9,0.94578385]
[1641760178188,1.07701298,3202.2,3201.9,0.94578385]
[1641760178889,1.85779508,3202.2,3201.9,0.94578385]
[1641760180236,1.07701298,3202.2,3201.9,0.94578385]
[1641760180838,1.15507298,3202.2,3201.9,0.94578385]
[1641760181037,1.93586258,3202.2,3201.9,0.94578385]
[1641760181837,4.51824022,3202.2,3201.9,0.94578385]
[1641760183088,1.93586258,3202.2,3201.9,0.94578385]
[1641760183283,2.04990361,3202.3,3201.9,0.94578385]
[1641760183684,1.97184361,3202.3,3201.9,0.94578385]
[1641760184083,0.07806,3202.2,3201.9,0.94578385]
[1641760184284,1.1565445,3202.2,3201.9,0.94578385]
[1641760184688,3.72448178,3202.2,3201.9,0.94578385]
[1641760184883,3.76943153,3202.2,3201.9,0.94578385]
[1641760185087,4.55021923,3202.2,3201.9,0.94578385]
[1641760185386,4.47215923,3202.2,3201.9,0.94578385]
[1641760185785,1.8592722,3202.2,3201.9,0.94578385]
[1641760185983,4.45572077,3202.2,3201.9,0.94578385]
[1641760186384,4.49482551,3202.2,3201.9,0.94578385]
[1641760186833,1.8592722,3202.2,3201.9,0.94578385]
[1641760187034,4.43042555,3202.2,3201.9,0.94578385]
[1641760188437,2.8617773,3202.1,3201.9,0.94578385]
[1641760188635,2.90139176,3202.0,3201.9,0.94578385]
[1641760189035,3.90139176,3202.0,3201.9,0.9469207]
[1641760189236,1.39039202,3201.4,3201.3,0.07806]
[1641760189438,1.24059464,3201.4,3201.3,0.07806]
[1641760189637,1.24059464,3201.4,3201.3,0.08147054]
[1641760190238,0.7809214,3201.7,3201.3,0.08147054]
[1641760190689,0.7809214,3201.7,3201.4,0.00284211]
[1641760191283,0.7809214,3201.7,3201.1,0.00454738]
[1641760192688,3.03315071,3201.8,3201.1,0.00454738]
[1641760192689,1.61737361,3201.8,3201.1,0.78085]
[1641760192889,0.07809,3201.8,3201.1,0.78085]
[1641760193087,0.07809,3201.8,3201.2,0.00397896]
[1641760193288,0.07944317,3201.9,3201.2,0.00397896]
[1641760193587,0.07944317,3201.9,3201.0,0.00511581]
[1641760193787,0.07944317,3201.9,3201.1,1.30179666]
[1641760193988,0.07944317,3201.9,3201.4,1.28311727]
[1641760194433,0.07944317,3201.9,3201.5,0.00227369]
[1641760195333,0.07944317,3201.9,3201.2,0.00397896]
[1641760196034,0.07944317,3201.9,3201.2,0.78479896]
[1641760196234,0.07807,3202.2,3201.4,0.01700466]
[1641760196437,0.07807,3202.2,3201.3,0.07807]
[1641760196635,0.00113685,3202.1,3201.5,0.00227369]
[1641760196835,0.00113685,3202.1,3201.9,1.40288723]
[1641760197037,0.00170527,3202.2,3201.9,1.40288723]
[1641760197436,0.00113685,3202.1,3201.9,1.40288723]
[1641760197840,0.00170527,3202.2,3201.9,1.40288723]
[1641760198287,0.00113685,3202.1,3201.9,1.40288723]
[1641760198692,0.0022737,3202.3,3201.9,1.40288723]
[1641760199090,0.00170527,3202.2,3201.9,1.40288723]
[1641760199492,0.00113685,3202.1,3201.9,1.40288723]
[1641760199993,2.66057046,3202.4,3202.0,1.33303619]
[1641760200200,0.7807362,3202.3,3202.0,1.33303619]
[1641760200492,0.7830099,3202.3,3202.0,1.28303619]
[1641760200893,0.7830099,3202.3,3201.5,0.85882]
[1641760202342,0.7830099,3202.3,3201.7,1.48730422]
[1641760203544,0.7830099,3202.3,3201.7,1.45383922]
[1641760204043,0.7830099,3202.3,3201.7,2.23456922]
[1641760204344,1.31530964,3202.0,3201.5,0.07806]
[1641760204744,2.60769473,3201.9,3201.5,0.07806]
[1641760205349,1.52856004,3201.7,3201.5,0.07806]
[1641760205987,2.30945884,3201.7,3201.5,0.07806]
[1641760206590,2.30945884,3201.7,3201.6,0.00170527]
[1641760207688,4.9675217,3201.7,3201.6,0.00170527]
[1641760207891,3.43896166,3201.7,3201.6,0.00170527]
[1641760208088,2.65806286,3201.7,3201.6,0.00170527]
[1641760208889,1.13954458,3201.7,3201.6,0.00170527]
[1641760209338,1.50885722,3201.7,3201.6,0.00170527]
[1641760209540,4.11993224,3201.7,3201.6,0.00170527]
[1641760210741,6.77805415,3201.7,3201.6,0.00170527]
[1641760213286,12.3,3201.6,3200.7,3.2207]
[1641760213490,0.00960714,3201.4,3200.7,3.2207]
[1641760213690,0.0051806,3201.1,3200.8,0.00454739]
[1641760213888,1.75,3201.5,3200.8,0.00454739]
[1641760214087,0.78115,3201.1,3200.8,0.00454739]
[1641760214388,2.34257118,3201.0,3200.6,0.00568423]
[1641760214587,0.18465632,3200.8,3200.6,0.00568423]
[1641760214789,0.36931264,3200.8,3200.6,0.00568423]
[1641760215188,0.36931264,3200.8,3200.2,0.00795793]
[1641760215596,0.3,3200.6,3200.2,0.00795793]
[1641760215790,0.3,3200.6,3199.4,3.71125199]
[1641760215988,0.66931264,3200.8,3199.4,3.71125199]
[1641760216189,0.00568423,3200.5,3199.4,3.71125199]
[1641760216390,0.00568423,3200.5,3199.1,0.9569238]
[1641760216391,0.71917498,3200.2,3199.1,0.9569238]
[1641760216592,1.01917498,3200.2,3199.1,0.9569238]
[1641760216842,0.00341054,3200.1,3199.1,0.9569238]
[1641760217042,0.07813,3200.0,3199.3,6.06]
[1641760217242,0.08097212,3200.0,3199.1,0.9569238]
[1641760217443,0.00227369,3199.9,3199.3,1.09499137]
[1641760217643,0.07813,3199.8,3199.4,0.07813]
[1641760217844,0.00170527,3199.8,3199.4,0.07813]
[1641760218045,0.00113685,3199.7,3199.4,0.07813]
[1641760218248,0.00113685,3199.7,3199.3,1.17312137]
[1641760218449,0.00341054,3200.1,3199.3,1.12312137]
[1641760218745,0.00284212,3200.0,3199.8,1.23269093]
[1641760219045,0.71917498,3200.2,3199.9,1.21309839]
[1641760219448,0.00341054,3200.1,3199.9,1.21309839]
[1641760219844,0.00284212,3200.0,3199.9,1.21309839]
[1641760220045,0.44742264,3200.0,3199.9,1.21309839]
[1641760220245,0.44742264,3200.0,3199.3,0.07908733]
[1641760220446,0.07813,3199.9,3199.4,0.78121]
[1641760220691,0.36931264,3200.0,3199.5,2.46000435]
[1641760220897,0.36931264,3200.0,3199.5,0.00284212]
[1641760221090,0.36931264,3200.0,3199.6,0.0804037]
[1641760221291,0.36931264,3200.0,3199.8,1.25138814]
[1641760221691,0.36931264,3200.0,3199.7,0.00170527]
[1641760221692,0.07811,3199.9,3199.7,0.00170527]
[1641760222091,0.07811,3199.9,3199.5,0.00284212]
[1641760222289,0.36931264,3200.0,3199.5,0.00284212]
[1641760222690,0.36931264,3200.0,3199.6,1.39919942]
[1641760223093,0.36931264,3200.0,3199.7,0.00170527]
[1641760225042,0.07813,3200.1,3199.7,0.00170527]
[1641760225243,0.18465632,3199.9,3199.7,0.00170527]
[1641760225438,0.36931264,3199.9,3199.7,0.00170527]
[1641760225640,0.36931264,3199.9,3199.7,2.52150273]
[1641760226042,0.36931264,3199.9,3199.8,11.05113685]
[1641760226244,0.36931264,3199.9,3199.8,11.12924685]
[1641760226439,0.6720171,3200.2,3199.9,5.05]
[1641760226639,0.6720171,3200.2,3200.1,2.2631303]
[1641760226840,0.6720171,3200.2,3200.1,2.3412403]
[1641760227039,0.67315394,3200.2,3200.1,2.3412403]
[1641760227242,0.67315394,3200.2,3200.1,4.74463596]
[1641760227542,0.67315394,3200.2,3200.1,2.3412403]
[1641760228193,0.67315394,3200.2,3200.1,4.90112955]
[1641760228396,0.67315394,3200.2,3200.1,2.3412403]
[1641760228791,0.67315394,3200.2,3200.1,4.88920559]
[1641760228996,0.00137317,3200.7,3200.2,12.9731]
[1641760229194,0.00137317,3200.7,3200.3,2.57811614]
[1641760229392,0.0022737,3200.6,3200.3,4.32811614]
[1641760229591,0.0022737,3200.6,3200.3,4.62811614]
[1641760229792,0.00170527,3200.5,3200.3,5.40897454]
[1641760230191,0.00113685,3200.4,3200.3,2.8308584]
[1641760230392,0.00113685,3200.4,3200.3,2.9089584]
[1641760230791,0.00113685,3200.4,3200.3,9.8399484]
[1641760230992,0.00113685,3200.4,3200.3,2.90909]
[1641760231296,0.00113685,3200.4,3200.3,5.58418066]
[1641760233851,0.00113685,3200.4,3200.3,9.58418066]
[1641760234249,0.00113685,3200.4,3200.3,6.36499236]
[1641760234449,0.00113685,3200.4,3200.3,3.98418066]
[1641760234851,0.00113685,3200.4,3200.3,6.93418066]
[1641760235053,0.00113685,3200.4,3200.3,3.98418066]
[1641760235252,0.00113685,3200.4,3200.2,0.6731]
[1641760236297,0.00113685,3200.4,3200.2,1.94819841]
[1641760238398,0.00113685,3200.4,3200.2,0.6731]
[1641760238798,0.00113685,3200.4,3200.2,0.67405723]
[1641760243092,0.00113685,3200.4,3200.2,0.67501456]
[1641760244586,0.00113685,3200.4,3200.2,1.45605456]
[1641760245187,0.00113685,3200.4,3200.3,15.03231065]
[1641760245388,0.00113685,3200.4,3200.3,16.47571065]
[1641760245589,0.00113685,3200.4,3200.3,18.07571065]
[1641760246587,0.00113685,3200.4,3200.3,18.15381065]
[1641760248041,0.00113685,3200.4,3200.3,18.15476788]
[1641760248242,0.00113685,3200.4,3200.3,18.15572521]
[1641760249243,2.65856654,3201.6,3200.4,0.01837997]
[1641760249445,2.65856654,3201.6,3200.9,0.78076]
[1641760249642,0.00625266,3201.5,3200.9,0.78076]
[1641760250042,0.00568424,3201.4,3200.9,0.78076]
[1641760250244,0.00568424,3201.4,3201.0,2.2396362]
[1641760250443,0.00511581,3201.3,3201.2,0.78075]
[1641760252094,0.00511581,3201.3,3201.1,1.5615]
[1641760252391,1.07809,3202.1,3201.3,0.78078]
[1641760252392,0.07809,3202.1,3201.3,0.78078]
[1641760252592,0.07807,3202.2,3201.4,2.57196112]
[1641760252792,4.81101635,3202.3,3201.8,1.16620858]
[1641760252793,0.00397897,3202.0,3201.8,1.16620858]
[1641760253201,0.00341054,3201.9,3201.8,1.16620858]
[1641760253591,0.00341054,3201.9,3201.8,1.11620858]
[1641760253790,0.00341054,3201.9,3201.8,1.89683858]
[1641760254644,0.00341054,3201.9,3201.7,1.85561669]
[1641760254842,0.95341054,3202.3,3201.7,0.62272744]
[1641760255042,2.73761569,3202.4,3201.7,0.62272744]
[1641760255243,2.66045622,3202.3,3201.7,0.62272744]
[1641760255644,0.00170527,3202.2,3201.7,0.62272744]
[1641760255945,0.00113685,3202.1,3201.7,1.63340727]
[1641760256444,0.00170527,3202.2,3201.7,1.63340727]
[1641760256845,0.00113685,3202.1,3201.7,1.63340727]
[1641760257250,0.00170527,3202.2,3201.7,1.63340727]
[1641760257646,0.00113685,3202.1,3201.7,1.63340727]
[1641760258106,2.65818252,3202.3,3201.7,1.63340727]
[1641760258107,0.00170527,3202.2,3201.7,1.63340727]
[1641760258295,0.00170527,3202.2,3201.8,0.00095723]
[1641760258495,0.00113685,3202.1,3201.8,0.00191456]
[1641760258895,0.00170527,3202.2,3201.8,0.00191456]
[1641760259299,0.00113685,3202.1,3201.8,0.00191456]
[1641760259800,0.00170527,3202.2,3201.8,0.00191456]
[1641760260198,0.00113685,3202.1,3201.8,0.00191456]
[1641760262343,2.60931937,3202.3,3202.2,1.34712533]
[1641760262539,2.55931937,3202.3,3202.2,1.34712533]
[1641760262740,0.00113685,3202.3,3202.2,1.34712533]
[1641760263742,0.00113685,3202.3,3202.2,2.51097503]
[1641760264541,0.00113685,3202.3,3202.2,3.21727503]
[1641760265442,0.00113685,3202.3,3202.2,3.29533503]
[1641760266094,0.00113685,3202.3,3202.2,5.85477568]
[1641760267595,0.02919685,3202.5,3202.2,7.15477568]
[1641760267797,0.02919685,3202.5,3202.4,0.78043]
[1641760268195,0.03033369,3202.5,3202.4,0.78043]
[1641760269194,0.49639316,3203.0,3202.4,0.78043]
[1641760269638,0.0022737,3202.9,3202.4,0.78043]
[1641760270145,0.00170527,3202.8,3202.4,0.78043]
[1641760270541,0.00113685,3202.7,3202.4,0.78043]
[1641760270939,0.00113685,3202.7,3202.3,1.56085]
[1641760271539,1.83062581,3203.0,3202.3,1.56085]
[1641760271740,1.83062581,3203.0,3202.4,0.00170527]
[1641760271939,0.00113685,3202.9,3202.4,0.00170527]
[1641760273694,0.00113685,3202.9,3202.4,0.00287043]
[1641760274095,0.00113685,3202.9,3202.5,0.00113685]
[1641760274695,0.00110853,3202.3,3202.2,2.12768533]
[1641760274895,0.00113685,3202.9,3202.2,0.78056]
[1641760275096,0.00170527,3202.8,3202.2,0.78226527]
[1641760275499,0.00113685,3202.7,3202.2,0.78226527]
[1641760275898,1.19006571,3202.9,3202.2,1.98038239]
[1641760276097,1.19006571,3202.9,3202.3,0.00227369]
[1641760276301,1.19120256,3202.9,3202.3,0.00227369]
[1641760276501,1.19120256,3202.9,3202.4,0.78052]
[1641760276838,1.19120256,3202.9,3202.5,0.00113685]
[1641760278240,0.00113685,3202.9,3202.5,0.00113685]
[1641760279340,0.00113685,3202.9,3202.6,0.78046]
[1641760279341,0.00273685,3202.9,3202.6,0.78046]
[1641760280603,0.35003054,3203.0,3202.6,1.94931945]
[1641760280989,0.35003054,3203.0,3202.7,0.00113685]
[1641760281891,0.35003054,3203.0,3202.8,0.78043]
[1641760282692,2.65764714,3202.9,3202.8,0.78043]
[1641760285848,2.65764714,3202.9,3202.7,1.38194656]
[1641760286849,2.60764714,3202.9,3202.7,1.38194656]
[1641760287050,2.60764714,3202.9,3202.7,0.00113685]
[1641760287251,4.05,3202.8,3201.6,0.45]
[1641760287451,0.01295732,3202.6,3201.6,0.45]
[1641760287650,0.07806,3202.5,3201.7,0.00568423]
[1641760287853,1.33291752,3202.4,3201.7,0.00568423]
[1641760288093,0.07806,3202.3,3201.8,1.41441066]
[1641760288292,1.41097752,3202.4,3201.8,2.97560066]
[1641760288489,1.41097752,3202.4,3201.9,0.00454739]
[1641760289187,1.41097752,3202.4,3201.9,0.78519739]
[1641760289588,1.41097752,3202.4,3202.0,0.00397896]
[1641760289790,1.33291752,3202.4,3202.0,0.00397896]
[1641760290188,1.48342508,3202.5,3202.0,0.00397896]
[1641760290388,1.48342508,3202.5,3202.0,0.78460896]
[1641760290787,1.48342508,3202.5,3202.1,0.00341054]
[1641760291187,0.07806,3202.8,3202.1,0.00341054]
[1641760291390,0.07806,3202.8,3202.1,1.20890732]
[1641760291589,0.07806,3202.8,3202.3,0.78056]
[1641760292043,3.36152805,3202.9,3202.4,0.00170527]
[1641760292242,1.3625281,3202.8,3202.4,0.00170527]
[1641760292443,0.07806,3202.7,3202.1,0.00341054]
[1641760292642,0.07806,3202.7,3201.9,1.14035933]
[1641760293142,0.00284212,3202.6,3201.9,1.14035933]
[1641760293547,0.00227369,3202.5,3201.9,1.14035933]
[1641760293945,0.00170527,3202.4,3202.0,1.56111]
[1641760294246,0.00113685,3202.3,3202.0,1.56111]
[1641760294645,0.00113685,3202.3,3201.9,1.14035933]
[1641760294845,0.07806,3202.5,3201.9,1.14035933]
[1641760295044,0.07806,3202.6,3202.3,0.00095621]
[1641760295244,0.00113684,3202.5,3202.3,0.00095621]
[1641760295446,0.07806,3202.4,3202.3,0.00095621]
[1641760295701,0.78181774,3202.5,3202.3,0.00095621]
[1641760295900,0.00113684,3202.5,3202.3,0.00095621]
[1641760296105,0.00113684,3202.5,3201.9,1.88251237]
[1641760296300,0.00227369,3202.4,3201.9,1.88251237]
[1641760296700,0.00170527,3202.3,3201.9,1.88251237]
[1641760297099,0.00113684,3202.2,3201.9,1.88251237]
[1641760297499,0.00284211,3202.5,3201.9,1.88251237]
[1641760297900,0.00227369,3202.4,3201.9,1.88251237]
[1641760298299,0.00170527,3202.3,3201.9,1.88251237]
[1641760298705,0.00113684,3202.2,3201.9,1.88251237]
[1641760299100,1.19172689,3202.6,3201.9,1.88251237]
[1641760299544,0.00284211,3202.5,3201.9,1.88251237]